[Event "Live Chess"]
[Site "Chess.com"]
[Date "2023.05.21"]
[Round "-"]
[White "LodeshChess"]
[Black "Long1968"]
[Result "1-0"]
[WhiteElo "1182"]
[BlackElo "1023"]
[TimeControl "300"]
[EndTime "19:02:35 PDT"]
[Termination "LodeshChess won on time"]

1. e4 {[%clk 0:04:57.3]} 1... e6 {[%clk 0:04:57.8]} 2. d4 {[%clk 0:04:55.4]}
2... d5 {[%clk 0:04:56.9]} 3. e5 {[%clk 0:04:55.1]} 3... c5 {[%clk 0:04:54.9]}
4. c3 {[%clk 0:04:54.8]} 4... Nc6 {[%clk 0:04:52.6]} 5. Nf3 {[%clk 0:04:54.5]}
5... b6 {[%clk 0:04:50]} 6. Bd3 {[%clk 0:04:52.2]} 6... cxd4 {[%clk 0:04:47.9]}
7. O-O {[%clk 0:04:51.4]} 7... a5 {[%clk 0:04:45.6]} 8. Nxd4 {[%clk 0:04:46.2]}
8... Nxe5 {[%clk 0:04:37.6]} 9. Re1 {[%clk 0:04:34.3]} 9... Nxd3 {[%clk
0:04:34.2]} 10. Qxd3 {[%clk 0:04:33.5]} 10... Nf6 {[%clk 0:04:30.5]} 11. Bg5
{[%clk 0:04:30.8]} 11... Ba6 {[%clk 0:04:26.2]} 12. Qf3 {[%clk 0:04:19.5]} 12...
Be7 {[%clk 0:04:17.3]} 13. Nc6 {[%clk 0:04:09.7]} 13... Qd7 {[%clk 0:04:08.9]}
14. Nxe7 {[%clk 0:04:07.6]} 14... Qxe7 {[%clk 0:04:03]} 15. Bxf6 {[%clk
0:03:57.9]} 15... Qxf6 {[%clk 0:04:00.3]} 16. Qxf6 {[%clk 0:03:57]} 16... gxf6
{[%clk 0:03:57.9]} 17. Nd2 {[%clk 0:03:56.3]} 17... Rg8 {[%clk 0:03:52]} 18. Nf3
{[%clk 0:03:55.2]} 18... Bb7 {[%clk 0:03:48.8]} 19. Re3 {[%clk 0:03:46.9]} 19...
d4 {[%clk 0:03:45.8]} 20. cxd4 {[%clk 0:03:45.7]} 20... Rg4 {[%clk 0:03:34.8]}
21. h3 {[%clk 0:03:25.3]} 21... Rg7 {[%clk 0:03:25.3]} 22. Rc1 {[%clk
0:03:11.3]} 22... Rd8 {[%clk 0:03:08.4]} 23. Rc7 {[%clk 0:02:55.3]} 23... Rd7
{[%clk 0:02:49.4]} 24. Rxd7 {[%clk 0:02:35.7]} 24... Kxd7 {[%clk 0:02:45.3]} 25.
b3 {[%clk 0:02:15.3]} 25... Rg8 {[%clk 0:02:38.1]} 26. Kh2 {[%clk 0:02:10.6]}
26... Rc8 {[%clk 0:02:32.4]} 27. Rd3 {[%clk 0:01:54.8]} 27... Bxf3 {[%clk
0:02:18]} 28. Rxf3 {[%clk 0:01:53.4]} 28... f5 {[%clk 0:02:06.5]} 29. a4 {[%clk
0:01:41.5]} 29... Kd6 {[%clk 0:01:41.8]} 30. Kg3 {[%clk 0:01:23.9]} 30... Rc1
{[%clk 0:01:27.3]} 31. Kh4 {[%clk 0:01:00.1]} 31... h6 {[%clk 0:01:21.2]} 32. g4
{[%clk 0:00:57.9]} 32... Rd1 {[%clk 0:01:11.7]} 33. gxf5 {[%clk 0:00:41.5]}
33... Rxd4+ {[%clk 0:00:15.5]} 34. Kg3 {[%clk 0:00:38.6]} 34... Ke5 {[%clk
0:00:08.9]} 35. fxe6 {[%clk 0:00:37.4]} 35... Kxe6 {[%clk 0:00:04.9]} 36. Re3+
{[%clk 0:00:36.5]} 36... Kf5 {[%clk 0:00:00.5]} 37. Rf3+ {[%clk 0:00:34.8]} 1-0

[Event "Live Chess"]
[Site "Chess.com"]
[Date "2023.05.21"]
[Round "-"]
[White "KeithArkell"]
[Black "KGreenGator"]
[Result "1-0"]
[WhiteElo "2573"]
[BlackElo "1803"]
[TimeControl "300"]
[EndTime "19:03:28 PDT"]
[Termination "KeithArkell won by checkmate"]

1. d4 {[%clk 0:04:48.5]} 1... Nf6 {[%clk 0:04:58.1]} 2. Nf3 {[%clk 0:04:47.7]}
2... d5 {[%clk 0:04:56.7]} 3. c4 {[%clk 0:04:46.8]} 3... e6 {[%clk 0:04:55]} 4.
cxd5 {[%clk 0:04:45.8]} 4... exd5 {[%clk 0:04:54]} 5. Nc3 {[%clk 0:04:45.1]}
5... c6 {[%clk 0:04:52.6]} 6. Qc2 {[%clk 0:04:43.1]} 6... g6 {[%clk 0:04:49.2]}
7. Bg5 {[%clk 0:04:41.6]} 7... Bf5 {[%clk 0:04:46.5]} 8. Qb3 {[%clk 0:04:40.6]}
8... b6 {[%clk 0:04:40.7]} 9. e4 {[%clk 0:04:39.7]} 9... dxe4 {[%clk 0:04:31.3]}
10. Ne5 {[%clk 0:04:38.4]} 10... Qe7 {[%clk 0:04:25.3]} 11. Bc4 {[%clk
0:04:35.7]} 11... Be6 {[%clk 0:04:16.6]} 12. Bxe6 {[%clk 0:04:34.5]} 12... fxe6
{[%clk 0:04:12]} 13. O-O {[%clk 0:04:32.5]} 13... Bg7 {[%clk 0:04:04.4]} 14.
Nxe4 {[%clk 0:04:31.1]} 14... O-O {[%clk 0:03:59.8]} 15. Rac1 {[%clk 0:04:30.2]}
15... Rc8 {[%clk 0:03:55.6]} 16. Rfe1 {[%clk 0:04:23.5]} 16... h6 {[%clk
0:03:52.2]} 17. Nxf6+ {[%clk 0:04:21.7]} 17... Bxf6 {[%clk 0:03:47.5]} 18. Nxg6
{[%clk 0:04:20.1]} 18... Qf7 {[%clk 0:03:41.6]} 19. Bxf6 {[%clk 0:04:14.2]}
19... Qxf6 {[%clk 0:03:36.2]} 20. Rxe6 {[%clk 0:04:10.6]} 20... Qg5 {[%clk
0:03:33.4]} 21. Rexc6+ {[%clk 0:04:04.9]} 21... Kg7 {[%clk 0:03:28.3]} 22. Rxc8
{[%clk 0:03:57.6]} 22... Nd7 {[%clk 0:03:27.4]} 23. R8c7 {[%clk 0:03:52.9]}
23... Rd8 {[%clk 0:03:23.1]} 24. Ne5 {[%clk 0:03:52.1]} 24... Kf6 {[%clk
0:02:59.2]} 25. Qf7# {[%clk 0:03:47]} 1-0

[Event "Live Chess"]
[Site "Chess.com"]
[Date "2023.05.21"]
[Round "-"]
[White "Tushinskiy"]
[Black "garyjc"]
[Result "1-0"]
[WhiteElo "2179"]
[BlackElo "1055"]
[TimeControl "300"]
[EndTime "19:03:46 PDT"]
[Termination "Tushinskiy won by checkmate"]

1. d4 {[%clk 0:04:57.4]} 1... Nf6 {[%clk 0:04:57]} 2. c3 {[%clk 0:04:57.3]} 2...
g6 {[%clk 0:04:54.5]} 3. Nf3 {[%clk 0:04:57.2]} 3... Bg7 {[%clk 0:04:49.8]} 4.
Bf4 {[%clk 0:04:55.9]} 4... O-O {[%clk 0:04:47.2]} 5. Bg3 {[%clk 0:04:55.8]}
5... d6 {[%clk 0:04:41.3]} 6. Nbd2 {[%clk 0:04:55.7]} 6... Nc6 {[%clk
0:04:32.2]} 7. e4 {[%clk 0:04:54.4]} 7... Re8 {[%clk 0:04:18.5]} 8. Bb5 {[%clk
0:04:51.9]} 8... Nh5 {[%clk 0:04:15.3]} 9. Qe2 {[%clk 0:04:49.8]} 9... Nxg3
{[%clk 0:04:13.6]} 10. hxg3 {[%clk 0:04:49.7]} 10... Bd7 {[%clk 0:04:04.3]} 11.
e5 {[%clk 0:04:48]} 11... a6 {[%clk 0:04:01]} 12. Ba4 {[%clk 0:04:43.7]} 12...
dxe5 {[%clk 0:03:43.7]} 13. dxe5 {[%clk 0:04:41.1]} 13... b5 {[%clk 0:03:29.4]}
14. Bb3 {[%clk 0:04:39.5]} 14... Na5 {[%clk 0:03:16.8]} 15. e6 {[%clk
0:04:37.2]} 15... fxe6 {[%clk 0:02:58.1]} 16. Bxe6+ {[%clk 0:04:35.1]} 16...
Bxe6 {[%clk 0:02:56.2]} 17. Qxe6+ {[%clk 0:04:33.5]} 17... Kh8 {[%clk
0:02:56.1]} 18. Ng5 {[%clk 0:04:28.9]} 18... Qd6 {[%clk 0:02:17.6]} 19. Rxh7#
{[%clk 0:04:28.8]} 1-0

[Event "Live Chess"]
[Site "Chess.com"]
[Date "2023.05.21"]
[Round "-"]
[White "alanmike75"]
[Black "Conradical12"]
[Result "1-0"]
[WhiteElo "1592"]
[BlackElo "1653"]
[TimeControl "300"]
[EndTime "19:03:55 PDT"]
[Termination "alanmike75 won by checkmate"]

1. e4 {[%clk 0:04:51.9]} 1... e5 {[%clk 0:04:58.7]} 2. Nf3 {[%clk 0:04:50.6]}
2... Nc6 {[%clk 0:04:57.6]} 3. d4 {[%clk 0:04:49.5]} 3... exd4 {[%clk 0:04:56]}
4. Bc4 {[%clk 0:04:48.2]} 4... Nf6 {[%clk 0:04:54.1]} 5. O-O {[%clk 0:04:47.1]}
5... Bd6 {[%clk 0:04:49.2]} 6. Re1 {[%clk 0:04:34.4]} 6... Ne5 {[%clk
0:04:44.9]} 7. Nxe5 {[%clk 0:04:29.3]} 7... Bxe5 {[%clk 0:04:43.4]} 8. Bg5
{[%clk 0:04:26.1]} 8... O-O {[%clk 0:04:41.1]} 9. c3 {[%clk 0:04:21.9]} 9...
dxc3 {[%clk 0:04:37.2]} 10. Nxc3 {[%clk 0:04:20.4]} 10... c6 {[%clk 0:04:33.9]}
11. f4 {[%clk 0:04:14.9]} 11... Bxc3 {[%clk 0:04:31.1]} 12. bxc3 {[%clk
0:04:13.7]} 12... h6 {[%clk 0:04:18.4]} 13. Bh4 {[%clk 0:04:08.5]} 13... Qa5
{[%clk 0:04:06.8]} 14. Bxf6 {[%clk 0:04:01.3]} 14... gxf6 {[%clk 0:04:01.4]} 15.
Qd4 {[%clk 0:03:57.7]} 15... b5 {[%clk 0:03:48.9]} 16. Bd3 {[%clk 0:03:50.7]}
16... Qd8 {[%clk 0:03:35.6]} 17. Re3 {[%clk 0:03:47.5]} 17... d5 {[%clk
0:03:17.2]} 18. Rg3+ {[%clk 0:03:45.1]} 18... Kh8 {[%clk 0:03:15.6]} 19. e5
{[%clk 0:03:38.6]} 19... f5 {[%clk 0:03:10.7]} 20. Rh3 {[%clk 0:03:26.1]} 20...
Kh7 {[%clk 0:03:05.8]} 21. g4 {[%clk 0:03:24.3]} 21... Rg8 {[%clk 0:02:51.8]}
22. g5 {[%clk 0:03:23]} 22... Rb8 {[%clk 0:01:59.7]} 23. Rxh6+ {[%clk
0:03:20.5]} 23... Kg7 {[%clk 0:01:56.2]} 24. e6+ {[%clk 0:03:13.2]} 24... f6
{[%clk 0:01:51.4]} 25. Bxf5 {[%clk 0:03:08.4]} 25... Qb6 {[%clk 0:01:41.3]} 26.
Rxf6 {[%clk 0:02:57.9]} 26... Qxd4+ {[%clk 0:01:39.7]} 27. cxd4 {[%clk
0:02:56.2]} 27... b4 {[%clk 0:01:37.8]} 28. Rb1 {[%clk 0:02:41.5]} 28... a5
{[%clk 0:01:35.6]} 29. Rb3 {[%clk 0:02:39.8]} 29... a4 {[%clk 0:01:33.5]} 30.
Rf7+ {[%clk 0:02:35]} 30... Kh8 {[%clk 0:01:29.2]} 31. Rh3# {[%clk 0:02:32.8]}
1-0

[Event "Live Chess"]
[Site "Chess.com"]
[Date "2023.05.21"]
[Round "-"]
[White "Biranidun"]
[Black "LutherSullivan"]
[Result "1/2-1/2"]
[WhiteElo "2549"]
[BlackElo "2110"]
[TimeControl "300"]
[EndTime "19:04:00 PDT"]
[Termination "Game drawn by agreement"]

1. e4 {[%clk 0:04:59.2]} 1... c5 {[%clk 0:04:51.4]} 2. Nf3 {[%clk 0:04:58.2]}
2... Nc6 {[%clk 0:04:50.9]} 3. d4 {[%clk 0:04:57.5]} 3... cxd4 {[%clk
0:04:47.3]} 4. Nxd4 {[%clk 0:04:57.4]} 4... g6 {[%clk 0:04:46.2]} 5. c4 {[%clk
0:04:51.7]} 5... Bg7 {[%clk 0:04:42.9]} 6. Be3 {[%clk 0:04:49.9]} 6... Nf6
{[%clk 0:04:41.2]} 7. Nc3 {[%clk 0:04:48.8]} 7... O-O {[%clk 0:04:40.1]} 8. Be2
{[%clk 0:04:47.9]} 8... d6 {[%clk 0:04:31.7]} 9. O-O {[%clk 0:04:34.9]} 9...
Nxd4 {[%clk 0:04:25.2]} 10. Bxd4 {[%clk 0:04:34.8]} 10... Be6 {[%clk 0:04:24.4]}
11. Rc1 {[%clk 0:04:32.8]} 11... Rc8 {[%clk 0:04:22.7]} 12. b3 {[%clk
0:04:31.8]} 12... a6 {[%clk 0:04:20.6]} 13. f4 {[%clk 0:04:29.1]} 13... b5
{[%clk 0:04:12.8]} 14. cxb5 {[%clk 0:04:24.4]} 14... axb5 {[%clk 0:04:10.9]} 15.
Bxb5 {[%clk 0:04:24.3]} 15... Nxe4 {[%clk 0:04:02.8]} 16. Bxg7 {[%clk 0:03:55]}
16... Kxg7 {[%clk 0:03:55.9]} 17. Qd4+ {[%clk 0:03:45.5]} 17... Nf6 {[%clk
0:03:52.6]} 18. Ne4 {[%clk 0:03:37.3]} 18... Qa5 {[%clk 0:03:38.6]} 19. a4
{[%clk 0:03:09.8]} 19... Bxb3 {[%clk 0:03:28.3]} 20. Nxf6 {[%clk 0:03:07.7]}
20... exf6 {[%clk 0:03:25.9]} 21. Rxc8 {[%clk 0:02:34.3]} 1/2-1/2

[Event "Live Chess"]
[Site "Chess.com"]
[Date "2023.05.21"]
[Round "-"]
[White "xx_blindpuffin_xx"]
[Black "GEMdzq"]
[Result "0-1"]
[WhiteElo "2181"]
[BlackElo "2278"]
[TimeControl "300"]
[EndTime "19:04:13 PDT"]
[Termination "GEMdzq won by resignation"]

1. e4 {[%clk 0:04:58]} 1... d6 {[%clk 0:04:58.5]} 2. d3 {[%clk 0:04:56.8]} 2...
Nf6 {[%clk 0:04:58]} 3. Nd2 {[%clk 0:04:56.2]} 3... g6 {[%clk 0:04:57.6]} 4. g3
{[%clk 0:04:55.9]} 4... Bg7 {[%clk 0:04:57.1]} 5. Bg2 {[%clk 0:04:55.6]} 5... c5
{[%clk 0:04:56.2]} 6. Ne2 {[%clk 0:04:55.3]} 6... Nc6 {[%clk 0:04:55.9]} 7. O-O
{[%clk 0:04:55]} 7... O-O {[%clk 0:04:55.4]} 8. c3 {[%clk 0:04:54.5]} 8... d5
{[%clk 0:04:50.1]} 9. exd5 {[%clk 0:04:52.2]} 9... Nxd5 {[%clk 0:04:50]} 10. Qc2
{[%clk 0:04:50.5]} 10... Bf5 {[%clk 0:04:47.2]} 11. Ne4 {[%clk 0:04:32]} 11...
Nf6 {[%clk 0:04:40]} 12. Nxf6+ {[%clk 0:04:27.4]} 12... Bxf6 {[%clk 0:04:37.6]}
13. Nf4 {[%clk 0:04:22.4]} 13... c4 {[%clk 0:04:35.3]} 14. Be3 {[%clk
0:04:14.6]} 14... Ne5 {[%clk 0:04:32.2]} 15. Bxb7 {[%clk 0:04:04.4]} 15... cxd3
{[%clk 0:04:28.9]} 16. Qa4 {[%clk 0:03:56.1]} 16... Rb8 {[%clk 0:04:26.6]} 17.
Qxa7 {[%clk 0:03:54.1]} 17... Qd7 {[%clk 0:04:00.5]} 18. Rfd1 {[%clk 0:03:32.7]}
18... Rxb7 {[%clk 0:03:58.1]} 0-1

[Event "Live Chess"]
[Site "Chess.com"]
[Date "2023.05.21"]
[Round "-"]
[White "chessfiction"]
[Black "therealab0ne"]
[Result "1-0"]
[WhiteElo "2361"]
[BlackElo "724"]
[TimeControl "300"]
[EndTime "19:04:14 PDT"]
[Termination "chessfiction won by checkmate"]

1. e4 {[%clk 0:04:57.6]} 1... c5 {[%clk 0:04:59.2]} 2. Nf3 {[%clk 0:04:55.7]}
2... Nc6 {[%clk 0:04:58.5]} 3. d4 {[%clk 0:04:54.9]} 3... cxd4 {[%clk
0:04:57.7]} 4. c3 {[%clk 0:04:54.3]} 4... dxc3 {[%clk 0:04:47.9]} 5. Bc4 {[%clk
0:04:53.3]} 5... e6 {[%clk 0:04:45.8]} 6. O-O {[%clk 0:04:50.9]} 6... Nf6 {[%clk
0:04:44.8]} 7. Nxc3 {[%clk 0:04:48]} 7... d5 {[%clk 0:04:43.8]} 8. exd5 {[%clk
0:04:46.6]} 8... exd5 {[%clk 0:04:43]} 9. Nxd5 {[%clk 0:04:46.5]} 9... Nxd5
{[%clk 0:04:41.7]} 10. Bxd5 {[%clk 0:04:46.4]} 10... Bb4 {[%clk 0:04:24.2]} 11.
Bg5 {[%clk 0:04:40.5]} 11... Ne7 {[%clk 0:03:58.7]} 12. Qa4+ {[%clk 0:04:34.7]}
12... Bd7 {[%clk 0:03:43.7]} 13. Qxb4 {[%clk 0:04:28.3]} 13... Qb6 {[%clk
0:03:35.6]} 14. Qxe7# {[%clk 0:04:26.6]} 1-0

[Event "Live Chess"]
[Site "Chess.com"]
[Date "2023.05.21"]
[Round "-"]
[White "ramses-IIG"]
[Black "manthanit"]
[Result "0-1"]
[WhiteElo "849"]
[BlackElo "1054"]
[TimeControl "300"]
[EndTime "19:05:04 PDT"]
[Termination "manthanit won on time"]

1. e4 {[%clk 0:04:58.4]} 1... e6 {[%clk 0:04:59]} 2. Nf3 {[%clk 0:04:58.3]} 2...
d5 {[%clk 0:04:58.4]} 3. e5 {[%clk 0:04:56.7]} 3... Ne7 {[%clk 0:04:46.8]} 4. d4
{[%clk 0:04:55.3]} 4... c5 {[%clk 0:04:43.3]} 5. c3 {[%clk 0:04:49.5]} 5... Nec6
{[%clk 0:04:42]} 6. Bb5 {[%clk 0:04:47.7]} 6... Bd7 {[%clk 0:04:40.7]} 7. O-O
{[%clk 0:04:45.4]} 7... Nxd4 {[%clk 0:04:25.1]} 8. Bxd7+ {[%clk 0:04:39.1]} 8...
Qxd7 {[%clk 0:04:24.1]} 9. cxd4 {[%clk 0:04:38.9]} 9... cxd4 {[%clk 0:04:22.5]}
10. Qxd4 {[%clk 0:04:30.9]} 10... Nc6 {[%clk 0:04:21.9]} 11. Qg4 {[%clk
0:03:49.8]} 11... Qc7 {[%clk 0:04:14.2]} 12. Qg3 {[%clk 0:03:43.1]} 12... g6
{[%clk 0:04:07.2]} 13. Nc3 {[%clk 0:03:32.4]} 13... Bg7 {[%clk 0:04:05.8]} 14.
Bf4 {[%clk 0:03:29.6]} 14... O-O {[%clk 0:04:01.5]} 15. b3 {[%clk 0:03:15.4]}
15... Nb4 {[%clk 0:03:42.4]} 16. Nb5 {[%clk 0:02:34.9]} 16... Qb6 {[%clk
0:03:31.9]} 17. Nbd4 {[%clk 0:02:32.5]} 17... Rac8 {[%clk 0:03:26.2]} 18. h3
{[%clk 0:02:28.8]} 18... Nd3 {[%clk 0:02:55]} 19. Be3 {[%clk 0:02:19.9]} 19...
Qc7 {[%clk 0:02:26]} 20. Rad1 {[%clk 0:01:05.4]} 20... Nxe5 {[%clk 0:02:21]} 21.
Rc1 {[%clk 0:00:54.4]} 21... Nxf3+ {[%clk 0:02:14.3]} 22. Qxf3 {[%clk
0:00:53.3]} 22... Qd7 {[%clk 0:02:04.7]} 23. Rxc8 {[%clk 0:00:33.9]} 23... Rxc8
{[%clk 0:02:03.1]} 24. Ne2 {[%clk 0:00:16.4]} 24... Rc2 {[%clk 0:01:51.2]} 25.
Nf4 {[%clk 0:00:13.5]} 25... Rxa2 {[%clk 0:01:45.7]} 26. b4 {[%clk 0:00:11.5]}
26... Ra3 {[%clk 0:01:39.5]} 27. Qg4 {[%clk 0:00:08.6]} 27... Bf8 {[%clk
0:01:35.7]} 28. Rb1 {[%clk 0:00:05.3]} 28... Ra4 {[%clk 0:01:34.1]} 29. Bxa7
{[%clk 0:00:03]} 29... Rxb4 {[%clk 0:01:32.1]} 30. Rxb4 {[%clk 0:00:00.6]} 30...
Bxb4 {[%clk 0:01:31.7]} 0-1

[Event "Live Chess"]
[Site "Chess.com"]
[Date "2023.05.21"]
[Round "-"]
[White "nigelst"]
[Black "wot-not"]
[Result "0-1"]
[WhiteElo "1747"]
[BlackElo "1564"]
[TimeControl "300"]
[EndTime "19:05:24 PDT"]
[Termination "wot-not won by resignation"]

1. e4 {[%clk 0:04:58.2]} 1... e6 {[%clk 0:04:58.7]} 2. d4 {[%clk 0:04:56.7]}
2... d5 {[%clk 0:04:58.4]} 3. exd5 {[%clk 0:04:55.2]} 3... exd5 {[%clk
0:04:57.3]} 4. Nf3 {[%clk 0:04:52.7]} 4... Nf6 {[%clk 0:04:57]} 5. Bd3 {[%clk
0:04:51.3]} 5... Bd6 {[%clk 0:04:56.4]} 6. Qe2+ {[%clk 0:04:50]} 6... Qe7 {[%clk
0:04:54.1]} 7. Qxe7+ {[%clk 0:04:48]} 7... Kxe7 {[%clk 0:04:53]} 8. O-O {[%clk
0:04:47.3]} 8... Re8 {[%clk 0:04:51]} 9. Re1+ {[%clk 0:04:45.7]} 9... Kf8 {[%clk
0:04:50.3]} 10. Rxe8+ {[%clk 0:04:43.8]} 10... Kxe8 {[%clk 0:04:49.7]} 11. Bg5
{[%clk 0:04:41.2]} 11... Nbd7 {[%clk 0:04:45.6]} 12. Nbd2 {[%clk 0:04:38.3]}
12... h6 {[%clk 0:04:45]} 13. Bh4 {[%clk 0:04:36.2]} 13... g6 {[%clk 0:04:44.4]}
14. Re1+ {[%clk 0:04:33.6]} 14... Kf8 {[%clk 0:04:43.3]} 15. Ne5 {[%clk
0:04:30.8]} 15... Kg7 {[%clk 0:04:27.4]} 16. Bg3 {[%clk 0:04:26]} 16... Bxe5
{[%clk 0:04:17.6]} 17. Bxe5 {[%clk 0:04:21.2]} 17... Nxe5 {[%clk 0:04:16.6]} 18.
dxe5 {[%clk 0:04:19]} 18... Nd7 {[%clk 0:04:15.6]} 19. e6 {[%clk 0:04:12.4]}
19... Nc5 {[%clk 0:04:06]} 20. exf7 {[%clk 0:04:09.8]} 20... Nxd3 {[%clk
0:04:03.3]} 21. Re8 {[%clk 0:03:55.4]} 21... Kxf7 {[%clk 0:04:00.4]} 22. Re3
{[%clk 0:03:50.3]} 22... Nxb2 {[%clk 0:03:55.2]} 23. Nf3 {[%clk 0:03:46]} 23...
Nc4 {[%clk 0:03:50]} 24. Re2 {[%clk 0:03:41.8]} 24... Bg4 {[%clk 0:03:48.6]} 25.
h3 {[%clk 0:03:39.6]} 25... Bxf3 {[%clk 0:03:46.4]} 26. gxf3 {[%clk 0:03:38.3]}
26... Re8 {[%clk 0:03:45.8]} 0-1

[Event "Live Chess"]
[Site "Chess.com"]
[Date "2023.05.21"]
[Round "-"]
[White "GEMdzq"]
[Black "chessfiction"]
[Result "1-0"]
[WhiteElo "2290"]
[BlackElo "2351"]
[TimeControl "300"]
[EndTime "19:06:33 PDT"]
[Termination "GEMdzq won by checkmate"]

1. e4 {[%clk 0:04:58.5]} 1... d5 {[%clk 0:04:58.5]} 2. exd5 {[%clk 0:04:57.2]}
2... c6 {[%clk 0:04:58]} 3. dxc6 {[%clk 0:04:55.4]} 3... e5 {[%clk 0:04:57.3]}
4. Nc3 {[%clk 0:04:52.6]} 4... Bc5 {[%clk 0:04:56.2]} 5. d3 {[%clk 0:04:47.5]}
5... Nf6 {[%clk 0:04:54.7]} 6. Nf3 {[%clk 0:04:45.9]} 6... Qb6 {[%clk 0:04:53]}
7. Qd2 {[%clk 0:04:39.8]} 7... Qxc6 {[%clk 0:04:45.2]} 8. Be2 {[%clk 0:04:34.8]}
8... Bg4 {[%clk 0:04:42.8]} 9. O-O {[%clk 0:04:33.4]} 9... Nbd7 {[%clk
0:04:41.2]} 10. h3 {[%clk 0:04:26.7]} 10... h5 {[%clk 0:04:39.5]} 11. Qg5 {[%clk
0:04:10.1]} 11... O-O-O {[%clk 0:04:33.7]} 12. Nxe5 {[%clk 0:04:03.1]} 12...
Nxe5 {[%clk 0:04:31.5]} 13. Qxe5 {[%clk 0:04:02.7]} 13... Rde8 {[%clk
0:04:28.1]} 14. Bxg4+ {[%clk 0:03:59.9]} 14... hxg4 {[%clk 0:04:26.4]} 15. Qf5+
{[%clk 0:03:59.2]} 15... Qd7 {[%clk 0:04:06.3]} 16. Qxc5+ {[%clk 0:03:57.2]}
16... Kb8 {[%clk 0:04:04.4]} 17. Bf4+ {[%clk 0:03:56.1]} 17... Ka8 {[%clk
0:04:03.4]} 18. Nb5 {[%clk 0:03:51.8]} 18... Nd5 {[%clk 0:03:58.9]} 19. Qxa7#
{[%clk 0:03:50.2]} 1-0

[Event "Live Chess"]
[Site "Chess.com"]
[Date "2023.05.21"]
[Round "-"]
[White "wot-not"]
[Black "Singapourfeuj"]
[Result "0-1"]
[WhiteElo "1563"]
[BlackElo "2153"]
[TimeControl "300"]
[EndTime "19:07:01 PDT"]
[Termination "Singapourfeuj won by checkmate"]

1. e4 {[%clk 0:04:56.9]} 1... e5 {[%clk 0:04:58.9]} 2. f4 {[%clk 0:04:56.2]}
2... d5 {[%clk 0:04:57.5]} 3. fxe5 {[%clk 0:04:55.6]} 3... Qh4+ {[%clk
0:04:55.7]} 4. Ke2 {[%clk 0:04:53]} 4... Qxe4+ {[%clk 0:04:54.1]} 5. Kf2 {[%clk
0:04:51.3]} 5... Bc5+ {[%clk 0:04:52.7]} 6. Kg3 {[%clk 0:04:47.2]} 6... Qxe5+
{[%clk 0:04:50.6]} 7. Kf3 {[%clk 0:04:43.4]} 7... Qe4+ {[%clk 0:04:47.9]} 8. Kg3
{[%clk 0:04:41.2]} 8... h5 {[%clk 0:04:43]} 9. d4 {[%clk 0:04:33.5]} 9... h4+
{[%clk 0:04:39.5]} 10. Kf2 {[%clk 0:04:31.3]} 10... Bxd4+ {[%clk 0:04:38.7]} 11.
Be3 {[%clk 0:04:19.4]} 11... Qxe3# {[%clk 0:04:37.2]} 0-1

[Event "Live Chess"]
[Site "Chess.com"]
[Date "2023.05.21"]
[Round "-"]
[White "IgorSchukin"]
[Black "ViktorTheCoolBoy"]
[Result "1/2-1/2"]
[WhiteElo "1788"]
[BlackElo "2507"]
[TimeControl "300"]
[EndTime "19:07:15 PDT"]
[Termination "Game drawn - timeout vs insufficient material"]

1. e4 {[%clk 0:04:53.8]} 1... e6 {[%clk 0:04:58.3]} 2. Nf3 {[%clk 0:04:51.6]}
2... d5 {[%clk 0:04:58.2]} 3. Nc3 {[%clk 0:04:50.4]} 3... Nf6 {[%clk 0:04:55.7]}
4. e5 {[%clk 0:04:48.7]} 4... Nfd7 {[%clk 0:04:54.6]} 5. d4 {[%clk 0:04:47.9]}
5... c5 {[%clk 0:04:52.9]} 6. Bb5 {[%clk 0:04:46.6]} 6... Be7 {[%clk 0:04:48.4]}
7. O-O {[%clk 0:04:44.8]} 7... O-O {[%clk 0:04:46.6]} 8. Re1 {[%clk 0:04:43.6]}
8... a6 {[%clk 0:04:45]} 9. Bxd7 {[%clk 0:04:41.3]} 9... Bxd7 {[%clk 0:04:43.6]}
10. Be3 {[%clk 0:04:32]} 10... Nc6 {[%clk 0:04:41.9]} 11. dxc5 {[%clk
0:04:27.7]} 11... Qa5 {[%clk 0:04:40.5]} 12. a3 {[%clk 0:04:10.3]} 12... Qc7
{[%clk 0:04:36.1]} 13. Bd4 {[%clk 0:04:02.2]} 13... Nxd4 {[%clk 0:04:34.1]} 14.
Qxd4 {[%clk 0:03:59.8]} 14... Bxc5 {[%clk 0:04:33]} 15. Qg4 {[%clk 0:03:58.2]}
15... Be7 {[%clk 0:04:28.4]} 16. h4 {[%clk 0:03:54]} 16... b5 {[%clk 0:04:26.2]}
17. Rad1 {[%clk 0:03:47.1]} 17... a5 {[%clk 0:04:22.7]} 18. Ng5 {[%clk 0:03:36]}
18... h6 {[%clk 0:04:20.1]} 19. Nh3 {[%clk 0:03:32]} 19... b4 {[%clk 0:04:17.7]}
20. axb4 {[%clk 0:03:30]} 20... axb4 {[%clk 0:04:16.6]} 21. Ne2 {[%clk
0:03:14.7]} 21... Qxc2 {[%clk 0:04:15]} 22. Nef4 {[%clk 0:03:00.8]} 22... f5
{[%clk 0:03:58.7]} 23. Qg6 {[%clk 0:02:50.8]} 23... Ra6 {[%clk 0:03:51.6]} 24.
Nxd5 {[%clk 0:02:32.6]} 24... Bxh4 {[%clk 0:03:35]} 25. Nxb4 {[%clk 0:02:06.2]}
25... Be8 {[%clk 0:03:12.7]} 26. Qxe8 {[%clk 0:01:23.9]} 26... Rxe8 {[%clk
0:03:01.8]} 27. Nxc2 {[%clk 0:01:21.7]} 27... Ra2 {[%clk 0:03:00.6]} 28. Rb1
{[%clk 0:01:13.8]} 28... Rb8 {[%clk 0:02:58.7]} 29. Nd4 {[%clk 0:01:10.8]} 29...
Rbxb2 {[%clk 0:02:52.4]} 30. Rxb2 {[%clk 0:01:08.3]} 30... Rxb2 {[%clk
0:02:52.3]} 31. Nxe6 {[%clk 0:01:06.9]} 31... Be7 {[%clk 0:02:51.3]} 32. Nd4
{[%clk 0:00:53.7]} 32... g6 {[%clk 0:02:44.9]} 33. Nc6 {[%clk 0:00:34.6]} 33...
Bc5 {[%clk 0:02:42.9]} 34. e6 {[%clk 0:00:31.1]} 34... Kf8 {[%clk 0:02:41.7]}
35. e7+ {[%clk 0:00:28.7]} 35... Ke8 {[%clk 0:02:40.7]} 36. Rd1 {[%clk
0:00:22.8]} 36... Bxe7 {[%clk 0:02:39.5]} 37. Re1 {[%clk 0:00:19.6]} 37... Rb7
{[%clk 0:02:38.2]} 38. Rxe7+ {[%clk 0:00:18.4]} 38... Rxe7 {[%clk 0:02:37.1]}
39. Nxe7 {[%clk 0:00:18]} 39... Kxe7 {[%clk 0:02:37]} 40. Nf4 {[%clk 0:00:16.8]}
40... Kf6 {[%clk 0:02:36]} 41. Ne2 {[%clk 0:00:16.3]} 41... g5 {[%clk
0:02:35.2]} 42. g3 {[%clk 0:00:15.4]} 42... Ke5 {[%clk 0:02:34.7]} 43. f4+
{[%clk 0:00:13.9]} 43... Ke4 {[%clk 0:02:33.6]} 44. fxg5 {[%clk 0:00:12.7]}
44... hxg5 {[%clk 0:02:33]} 45. Kg2 {[%clk 0:00:12]} 45... Ke3 {[%clk
0:02:32.3]} 46. Ng1 {[%clk 0:00:10.5]} 46... g4 {[%clk 0:02:29.6]} 47. Kf1
{[%clk 0:00:07.2]} 47... Kd2 {[%clk 0:02:28.6]} 48. Ne2 {[%clk 0:00:06.2]} 48...
Kd3 {[%clk 0:02:28]} 49. Kf2 {[%clk 0:00:05.4]} 49... Ke4 {[%clk 0:02:27]} 50.
Nf4 {[%clk 0:00:04.9]} 50... Ke5 {[%clk 0:02:26.3]} 51. Ke3 {[%clk 0:00:04]}
51... Kd6 {[%clk 0:02:25.4]} 52. Kd4 {[%clk 0:00:03.1]} 52... Kd7 {[%clk
0:02:24.6]} 53. Ke5 {[%clk 0:00:01.4]} 53... Ke7 {[%clk 0:02:23.6]} 54. Kxf5
{[%clk 0:00:01.1]} 54... Kf7 {[%clk 0:02:22.7]} 55. Kxg4 {[%clk 0:00:00.8]}
55... Kf6 {[%clk 0:02:21.4]} 1/2-1/2